[Event "9th RTU Open 2019"]
[Site "Riga"]
[Date "2019.08.06"]
[Round "2.12"]
[White "Michalik 	, Peter"]
[Black "Kruglyakov, Pavlo"]
[Result "1-0"]
[ECO "B52"]
[WhiteElo "2573"]
[BlackElo "2347"]
[Annotator "ChessBase"]
[PlyCount "89"]
[EventDate "2019.08.05"]
[EventType "swiss"]
[EventCountry "LAT"]
[SourceTitle "playchess.com"]
[Source "ChessBase"]
[SourceQuality "1"]
[TimeControl "5400+30"]

1. e4 {[%emt 0:00:00]} c5 {[%emt 0:00:00]} 2. Nf3 {[%emt 0:00:00]} d6 {[%emt 0:00:00]} 3. Bb5+ {[%emt 0:00:06]} Bd7 {[%emt 0:05:45]} 4. Bxd7+ {[%emt 0:00:11]} Qxd7 {[%emt 0:00:05]} 5. c4 {[%emt 0:00:09]} Nf6 {[%emt 0:00:12]} 6. Nc3 {[%emt 0:00:07]} Nc6 {[%emt 0:00:08]} 7. d4 {[%emt 0:01:32]} cxd4 {[%emt 0:00:08]} 8. Nxd4 {[%emt 0:00:06]} Qg4 {[%emt 0:01:41]} 9. Qxg4 {[%emt 0:04:13]} Nxg4 {[%emt 0:00:03]} 10. Nxc6 {[%emt 0:00:07]} bxc6 {[%emt 0:00:05]} 11. b3 {[%emt 0:00:05]} g6 {[%emt 0:04:29]} 12. Bb2 {[%emt 0:00:12]} Bg7 {[%emt 0:00:17]} 13. h3 {[%emt 0:01:07]} Nf6 {[%emt 0:25:24]} 14. O-O-O {[%emt 0:01:46]} O-O {[%emt 0:01:43]} 15. Rhe1 {[%emt 0:08:05]} Nd7 {[%emt 0:05:26]} 16. Na4 {[%emt 0:12:21]} a5 {[%emt 0:16:34]} 17. Bxg7 {[%emt 0:02:53]} Kxg7 {[%emt 0:00:02]} 18. e5 {[%emt 0:00:35]} Nc5 {[%emt 0:07:24]} 19. exd6 {[%emt 0:08:16]} exd6 {[%emt 0:00:07]} 20. Rxd6 {[%emt 0:00:54]} Nxa4 {[%emt 0:00:15]} 21. bxa4 {[%emt 0:00:16]} Rfe8 {[%emt 0:13:25]} 22. Rxe8 {[%emt 0:09:21]} Rxe8 {[%emt 0:00:01]} 23. Kd2 {[%emt 0:00:06]} Re6 {[%emt 0:01:01]} 24. Rd7 {[%emt 0:01:51]} Re4 {[%emt 0:05:56]} 25. Kd3 {[%emt 0:00:38]} Re1 {[%emt 0:00:07]} 26. Ra7 {[%emt 0:00:30]} Ra1 {[%emt 0:03:04]} 27. Rxa5 {[%emt 0:00:28]} Rxa2 {[%emt 0:00:01]} 28. Ke3 {[%emt 0:04:38]} Kf6 {[%emt 0:00:27]} 29. Ra7 {[%emt 0:03:10]} h5 {[%emt 0:02:20]} 30. a5 {[%emt 0:00:42]} Ke6 {[%emt 0:02:24]} 31. a6 {[%emt 0:00:21]} Ra3+ {[%emt 0:02:06]} 32. Kd4 {[%emt 0:00:18]} Ra5 {[%emt 0:00:21]} 33. Ra8 {[%emt 0:00:52]} h4 {[%emt 0:03:26]} 34. a7 {[%emt 0:01:17]} Kf5 {[%emt 0:00:04]} 35. g3 {[%emt 0:03:22]} hxg3 {[%emt 0:02:15]} 36. fxg3 {[%emt 0:00:01]} g5 {[%emt 0:00:00]} 37. h4 {[%emt 0:00:52]} gxh4 {[%emt 0:00:13]} 38. gxh4 {[%emt 0:00:04]} Kf6 {[%emt 0:00:29]} 39. h5 {[%emt 0:00:05]} Kg7 {[%emt 0:00:21]} 40. h6+ {[%emt 0:00:14]} Kh7 {[%emt 0:00:04]} 41. Ke4 {[%emt 0:00:05]} f6 {[%emt 0:02:02]} 42. Kf4 {[%emt 0:00:04]} f5 {[%emt 0:00:32]} 43. Kg5 {[%emt 0:00:24]} Ra4 {[%emt 0:00:29]} 44. Kxf5 {[%emt 0:00:08]} Ra5+ {[%emt 0:00:32]} 45. Ke4 {[%emt 0:00:38]} 1-0

[Event "9th RTU Open 2019"]
[Site "Riga"]
[Date "2019.08.06"]
[Round "2.13"]
[White "Puranik, Abhimanyu"]
[Black "Runets, Ivan"]
[Result "1-0"]
[ECO "B80"]
[WhiteElo "2550"]
[BlackElo "2329"]
[Annotator "ChessBase"]
[PlyCount "97"]
[EventDate "2019.08.05"]
[EventType "swiss"]
[EventCountry "LAT"]
[SourceTitle "playchess.com"]
[Source "ChessBase"]
[SourceQuality "1"]
[TimeControl "5400+30"]

1. e4 {[%emt 0:00:00]} c5 {[%emt 0:00:37]} 2. Nf3 {[%emt 0:00:00]} Nc6 {[%emt 0:00:08]} 3. d4 {[%emt 0:00:00]} cxd4 {[%emt 0:00:07]} 4. Nxd4 {[%emt 0:00:00]} e6 {[%emt 0:00:06]} 5. Nc3 {[%emt 0:00:00]} d6 {[%emt 0:00:24]} 6. Nxc6 {[%emt 0:01:49]} bxc6 {[%emt 0:00:08]} 7. Bd3 {[%emt 0:00:06]} Nf6 {[%emt 0:06:10]} 8. O-O {[%emt 0:00:25]} d5 {[%emt 0:02:41]} 9. Qe2 {[%emt 0:04:41]} Be7 {[%emt 0:03:50]} 10. b3 {[%emt 0:06:34]} O-O {[%emt 0:07:08]} 11. Bb2 {[%emt 0:02:35]} Nd7 {[%emt 0:05:15]} 12. Na4 {[%emt 0:02:22]} Nb6 {[%emt 0:06:44]} 13. Nxb6 {[%emt 0:00:56]} axb6 {[%emt 0:01:06]} 14. a4 {[%emt 0:03:09]} f5 {[%emt 0:04:23]} 15. exf5 {[%emt 0:03:13]} exf5 {[%emt 0:01:49]} 16. f4 {[%emt 0:11:20]} Bf6 {[%emt 0:04:09]} 17. Bxf6 {[%emt 0:01:49]} Qxf6 {[%emt 0:01:52]} 18. Qf2 {[%emt 0:03:18]} c5 {[%emt 0:05:09]} 19. Rae1 {[%emt 0:01:38]} Be6 {[%emt 0:19:04]} 20. Bb5 {[%emt 0:01:15]} Bf7 {[%emt 0:01:02]} 21. Re5 {[%emt 0:01:07]} Rfd8 {[%emt 0:03:22]} 22. Rfe1 {[%emt 0:03:14]} Ra7 {[%emt 0:04:26]} 23. h3 {[%emt 0:02:36]} g6 {[%emt 0:00:16]} 24. h4 {[%emt 0:09:23]} Kg7 {[%emt 0:04:19]} 25. h5 {[%emt 0:00:40]} Rd6 {[%emt 0:02:51]} 26. Qg3 {[%emt 0:03:05]} Re6 {[%emt 0:03:36]} 27. Rxe6 {[%emt 0:01:16]} Bxe6 {[%emt 0:00:05]} 28. Re5 {[%emt 0:00:26]} Bf7 {[%emt 0:00:31]} 29. c3 {[%emt 0:05:55]} Re7 {[%emt 0:04:08]} 30. h6+ {[%emt 0:01:06]} Kf8 {[%emt 0:00:25]} 31. b4 {[%emt 0:05:14]} Qd6 {[%emt 0:02:18]} 32. Rxf5 {[%emt 0:06:31]} cxb4 {[%emt 0:01:16]} 33. cxb4 {[%emt 0:00:04]} Qxb4 {[%emt 0:00:26]} 34. Re5 {[%emt 0:04:27]} Rxe5 {[%emt 0:01:41]} 35. fxe5 {[%emt 0:00:02]} Qd2 {[%emt 0:02:21]} 36. Qf2 {[%emt 0:02:11]} Qc1+ {[%emt 0:02:32]} 37. Bf1 {[%emt 0:00:13]} Qc6 {[%emt 0:00:19]} 38. Qh4 {[%emt 0:01:58]} Qc5+ {[%emt 0:00:39]} 39. Kh2 {[%emt 0:00:23]} Qe7 {[%emt 0:01:04]} 40. Qf4 {[%emt 0:01:04]} g5 {[%emt 0:00:49]} 41. Qe3 {[%emt 0:00:25]} Bg6 {[%emt 0:00:37]} 42. Kh1 {[%emt 0:07:55]} Be4 {[%emt 0:00:20]} 43. Qg3 {[%emt 0:00:34]} Kf7 {[%emt 0:00:22]} 44. Qf2+ {[%emt 0:01:36]} Ke6 {[%emt 0:00:40]} 45. Qxb6+ {[%emt 0:00:23]} Kxe5 {[%emt 0:00:03]} 46. a5 {[%emt 0:00:22]} d4 {[%emt 0:01:03]} 47. a6 {[%emt 0:00:21]} Qf8 {[%emt 0:00:37]} 48. Bc4 {[%emt 0:02:14]} Qf2 {[%emt 0:00:30]} 49. Qc7+ {[%emt 0:00:18] Kd5} 1-0

[Event "9th RTU Open 2019"]
[Site "Riga"]
[Date "2019.08.06"]
[Round "2.14"]
[White "Rudolf, Michal"]
[Black "Theodorou, Nikolas"]
[Result "1/2-1/2"]
[ECO "C55"]
[WhiteElo "2347"]
[BlackElo "2548"]
[Annotator "ChessBase"]
[PlyCount "87"]
[EventDate "2019.08.05"]
[EventType "swiss"]
[EventCountry "LAT"]
[SourceTitle "playchess.com"]
[Source "ChessBase"]
[SourceQuality "1"]
[TimeControl "5400+30"]

1. e4 {[%emt 0:00:00]} e5 {[%emt 0:00:00]} 2. Nf3 {[%emt 0:00:00]} Nc6 {[%emt 0:00:00]} 3. Bc4 {[%emt 0:00:00]} Nf6 {[%emt 0:00:00]} 4. d3 {[%emt 0:00:00]} h6 {[%emt 0:00:01]} 5. O-O {[%emt 0:00:18]} d6 {[%emt 0:00:06]} 6. c3 {[%emt 0:01:20]} g5 {[%emt 0:00:09]} 7. Nbd2 {[%emt 0:03:16]} Bg7 {[%emt 0:00:24]} 8. Bb3 {[%emt 0:02:01]} O-O {[%emt 0:02:13]} 9. Nc4 {[%emt 0:01:07]} Be6 {[%emt 0:18:06]} 10. Re1 {[%emt 0:02:48]} g4 {[%emt 0:35:55]} 11. Nfd2 {[%emt 0:01:32]} d5 {[%emt 0:03:18]} 12. exd5 {[%emt 0:05:45]} Nxd5 {[%emt 0:00:03]} 13. Ne4 {[%emt 0:02:48]} b6 {[%emt 0:05:13]} 14. Ng3 {[%emt 0:04:04]} Qh4 {[%emt 0:06:22]} 15. Ne3 {[%emt 0:01:07]} Nxe3 {[%emt 0:01:17]} 16. Bxe3 {[%emt 0:00:08]} Rae8 {[%emt 0:05:32]} 17. Ba4 {[%emt 0:06:57]} Bd7 {[%emt 0:00:01]} 18. Bb5 {[%emt 0:08:34]} a6 {[%emt 0:03:52]} 19. Bxa6 {[%emt 0:04:05]} f5 {[%emt 0:00:02]} 20. f4 {[%emt 0:03:12]} gxf3 {[%emt 0:07:50]} 21. Qxf3 {[%emt 0:00:08]} Kh7 {[%emt 0:03:56]} 22. Bb5 {[%emt 0:05:41]} Qf6 {[%emt 0:03:37]} 23. Nh5 {[%emt 0:07:18]} Qg6 {[%emt 0:00:02]} 24. Nxg7 {[%emt 0:00:38]} Kxg7 {[%emt 0:01:34]} 25. Bf2 {[%emt 0:02:20]} Kh7 {[%emt 0:00:16]} 26. d4 {[%emt 0:08:55]} Nxd4 {[%emt 0:00:39]} 27. Bxd4 {[%emt 0:02:11]} Bxb5 {[%emt 0:00:03]} 28. Rxe5 {[%emt 0:03:13]} Rxe5 {[%emt 0:00:02]} 29. Bxe5 {[%emt 0:00:10]} f4 {[%emt 0:01:05]} 30. Re1 {[%emt 0:02:12]} Bc6 {[%emt 0:00:51]} 31. Qf2 {[%emt 0:00:10]} Rg8 {[%emt 0:01:57]} 32. Bxf4 {[%emt 0:03:07]} Qxg2+ {[%emt 0:00:16]} 33. Qxg2 {[%emt 0:00:03]} Rxg2+ {[%emt 0:00:05]} 34. Kf1 {[%emt 0:00:04]} Rxb2 {[%emt 0:00:08]} 35. Bxc7 {[%emt 0:02:40]} Rxa2 {[%emt 0:00:34]} 36. Re7+ {[%emt 0:00:25]} Kg8 {[%emt 0:00:06]} 37. Re6 {[%emt 0:00:21]} Bb5+ {[%emt 0:00:54]} 38. Kg1 {[%emt 0:00:38]} Rc2 {[%emt 0:00:06]} 39. Be5 {[%emt 0:01:38]} Re2 {[%emt 0:00:46]} 40. Rg6+ {[%emt 0:00:34]} Kf7 {[%emt 0:00:10]} 41. Rf6+ {[%emt 0:00:20]} Ke7 {[%emt 0:00:16]} 42. Bd4 {[%emt 0:00:08]} Re1+ {[%emt 0:00:25]} 43. Kg2 {[%emt 0:00:25]} Re6 {[%emt 0:00:08]} 44. Rxe6+ {[%emt 0:00:12]} 1/2-1/2

[Event "9th RTU Open 2019"]
[Site "Riga"]
[Date "2019.08.06"]
[Round "2.15"]
[White "Handke, Florian"]
[Black "Borisovsky, Dmitry"]
[Result "1/2-1/2"]
[ECO "B69"]
[WhiteElo "2544"]
[BlackElo "2326"]
[Annotator "ChessBase"]
[PlyCount "71"]
[EventDate "2019.08.05"]
[EventType "swiss"]
[EventCountry "LAT"]
[SourceTitle "playchess.com"]
[Source "ChessBase"]
[SourceQuality "1"]
[TimeControl "5400+30"]

1. e4 {[%emt 0:00:00]} c5 {[%emt 0:00:00]} 2. Nf3 {[%emt 0:00:00]} Nc6 {[%emt 0:00:12]} 3. d4 {[%emt 0:00:00]} cxd4 {[%emt 0:00:09]} 4. Nxd4 {[%emt 0:00:00]} Nf6 {[%emt 0:02:14]} 5. Nc3 {[%emt 0:00:00]} d6 {[%emt 0:00:14]} 6. Bg5 {[%emt 0:00:00]} e6 {[%emt 0:01:37]} 7. Qd2 {[%emt 0:00:07]} a6 {[%emt 0:02:17]} 8. O-O-O {[%emt 0:00:10]} Bd7 {[%emt 0:06:41]} 9. f4 {[%emt 0:02:56]} Be7 {[%emt 0:02:42]} 10. Nf3 {[%emt 0:01:55]} b5 {[%emt 0:05:09]} 11. Bxf6 {[%emt 0:00:54]} gxf6 {[%emt 0:00:09]} 12. f5 {[%emt 0:04:10]} Qa5 {[%emt 0:03:27]} 13. Kb1 {[%emt 0:01:20]} O-O-O {[%emt 0:00:38]} 14. g3 {[%emt 0:02:23]} Kb8 {[%emt 0:03:12]} 15. Bh3 {[%emt 0:12:20]} Bc8 {[%emt 0:07:01]} 16. fxe6 {[%emt 0:12:14]} fxe6 {[%emt 0:00:07]} 17. Ne2 {[%emt 0:00:09]} Qxd2 {[%emt 0:15:49]} 18. Rxd2 {[%emt 0:00:19]} Ne5 {[%emt 0:21:02]} 19. Nfd4 {[%emt 0:03:17]} Bb7 {[%emt 0:10:35]} 20. Bxe6 {[%emt 0:07:30]} Bxe4 {[%emt 0:00:09]} 21. Re1 {[%emt 0:01:26]} d5 {[%emt 0:05:36]} 22. Nc3 {[%emt 0:02:21]} Bc5 {[%emt 0:02:00]} 23. Nb3 {[%emt 0:30:53]} Nf3 {[%emt 0:04:37]} 24. Rdd1 {[%emt 0:01:50]} Nxe1 {[%emt 0:00:33]} 25. Rxe1 {[%emt 0:01:03]} Bb6 {[%emt 0:01:30]} 26. Rf1 {[%emt 0:01:28]} Rd6 {[%emt 0:02:03]} 27. Bg4 {[%emt 0:00:51]} Re8 {[%emt 0:00:57]} 28. a4 {[%emt 0:02:01]} d4 {[%emt 0:02:17]} 29. Nxe4 {[%emt 0:00:49]} Rxe4 {[%emt 0:00:02]} 30. Bf5 {[%emt 0:00:13]} Re7 {[%emt 0:00:46]} 31. axb5 {[%emt 0:00:24]} axb5 {[%emt 0:00:04]} 32. Bd3 {[%emt 0:00:25]} Rde6 {[%emt 0:00:49]} 33. Nd2 {[%emt 0:03:19]} Re1+ {[%emt 0:00:10]} 34. Rxe1 {[%emt 0:00:15]} Rxe1+ {[%emt 0:00:06]} 35. Ka2 {[%emt 0:00:01]} Re5 {[%emt 0:01:31]} 36. Nf3 {[%emt 0:04:40]} 1/2-1/2

[Event "9th RTU Open 2019"]
[Site "Riga"]
[Date "2019.08.06"]
[Round "2.16"]
[White "Sinz, Bernhard"]
[Black "Meshkovs, Nikita"]
[Result "0-1"]
[ECO "A45"]
[WhiteElo "2343"]
[BlackElo "2541"]
[Annotator "ChessBase"]
[PlyCount "84"]
[EventDate "2019.08.05"]
[EventType "swiss"]
[EventCountry "LAT"]
[SourceTitle "playchess.com"]
[Source "ChessBase"]
[SourceQuality "1"]
[TimeControl "5400+30"]

1. d4 {[%emt 0:00:00]} Nf6 {[%emt 0:00:03]} 2. Bg5 {[%emt 0:00:00]} g6 {[%emt 0:01:51]} 3. Bxf6 {[%emt 0:00:49]} exf6 {[%emt 0:00:09]} 4. g3 {[%emt 0:01:23]} d5 {[%emt 0:00:12]} 5. Bg2 {[%emt 0:00:39]} c6 {[%emt 0:00:12]} 6. e3 {[%emt 0:01:48]} Bd6 {[%emt 0:04:03]} 7. Ne2 {[%emt 0:01:36]} h5 {[%emt 0:00:29]} 8. h4 {[%emt 0:04:05]} Bg4 {[%emt 0:06:46]} 9. Nd2 {[%emt 0:10:13]} Nd7 {[%emt 0:02:30]} 10. c4 {[%emt 0:02:52]} dxc4 {[%emt 0:01:47]} 11. Nxc4 {[%emt 0:01:07]} Bb4+ {[%emt 0:00:16]} 12. Kf1 {[%emt 0:00:27]} Nb6 {[%emt 0:05:26]} 13. Qd3 {[%emt 0:11:07]} Nxc4 {[%emt 0:05:21]} 14. Qxc4 {[%emt 0:03:21]} Bd6 {[%emt 0:00:15]} 15. Be4 {[%emt 0:25:06]} Rc8 {[%emt 0:07:42]} 16. Qc2 {[%emt 0:12:20]} Qe7 {[%emt 0:06:20]} 17. Nc3 {[%emt 0:00:21]} O-O {[%emt 0:02:08]} 18. Kg2 {[%emt 0:01:22]} Rfe8 {[%emt 0:04:28]} 19. Bf3 {[%emt 0:08:51]} Bxf3+ {[%emt 0:01:38]} 20. Kxf3 {[%emt 0:00:02]} c5 {[%emt 0:00:09]} 21. Rhe1 {[%emt 0:02:43]} b5 {[%emt 0:02:32]} 22. Qd3 {[%emt 0:04:38]} c4 {[%emt 0:06:26]} 23. Qc2 {[%emt 0:00:27]} b4 {[%emt 0:00:32]} 24. Nd5 {[%emt 0:01:57]} Qe6 {[%emt 0:00:02]} 25. e4 {[%emt 0:01:05]} f5 {[%emt 0:00:03]} 26. Kg2 {[%emt 0:00:21]} Kg7 {[%emt 0:00:01]} 27. f3 {[%emt 0:01:52]} fxe4 {[%emt 0:00:09]} 28. fxe4 {[%emt 0:01:10]} f5 {[%emt 0:00:05]} 29. a3 {[%emt 0:01:09]} fxe4 {[%emt 0:05:47]} 30. Ne3 {[%emt 0:00:02]} bxa3 {[%emt 0:00:46]} 31. bxa3 {[%emt 0:00:01]} Rf8 {[%emt 0:00:23]} 32. Nf1 {[%emt 0:01:42]} Rce8 {[%emt 0:00:53]} 33. Re3 {[%emt 0:00:54]} Rf6 {[%emt 0:04:04]} 34. Rc1 {[%emt 0:00:35]} Ref8 {[%emt 0:00:53]} 35. Re2 {[%emt 0:00:52]} Rf3 {[%emt 0:00:38]} 36. Rce1 {[%emt 0:00:25]} Bxg3 {[%emt 0:02:13]} 37. Rxe4 {[%emt 0:00:28]} Rf2+ {[%emt 0:00:11]} 38. Qxf2 {[%emt 0:00:33]} Rxf2+ {[%emt 0:00:04]} 39. Kxg3 {[%emt 0:00:08]} Qf5 {[%emt 0:02:21]} 40. Nh2 {[%emt 0:00:07]} c3 {[%emt 0:00:06]} 41. d5 {[%emt 0:00:57]} c2 {[%emt 0:00:13]} 42. Rc4 {[%emt 0:00:27]} Rxh2 {[%emt 0:01:11]} 0-1

[Event "9th RTU Open 2019"]
[Site "Riga"]
[Date "2019.08.06"]
[Round "2.17"]
[White "Deepan Chakkravarthy J."]
[Black "Rakshitta Ravi"]
[Result "1-0"]
[ECO "A03"]
[WhiteElo "2532"]
[BlackElo "2322"]
[Annotator "ChessBase"]
[PlyCount "97"]
[EventDate "2019.08.05"]
[EventType "swiss"]
[EventCountry "LAT"]
[SourceTitle "playchess.com"]
[Source "ChessBase"]
[SourceQuality "1"]
[TimeControl "5400+30"]

1. b3 {[%emt 0:00:10]} Nf6 {[%emt 0:00:08]} 2. Bb2 {[%emt 0:00:07]} e6 {[%emt 0:00:04]} 3. e3 {[%emt 0:00:53]} d5 {[%emt 0:00:20]} 4. f4 {[%emt 0:00:31]} c5 {[%emt 0:02:24]} 5. Nf3 {[%emt 0:00:11]} Nc6 {[%emt 0:00:35]} 6. Bb5 {[%emt 0:00:17]} a6 {[%emt 0:00:52]} 7. Bxc6+ {[%emt 0:00:10]} bxc6 {[%emt 0:00:02]} 8. O-O {[%emt 0:00:45]} Be7 {[%emt 0:02:05]} 9. d3 {[%emt 0:04:15]} a5 {[%emt 0:07:52]} 10. a4 {[%emt 0:03:53]} Ba6 {[%emt 0:04:31]} 11. Nbd2 {[%emt 0:00:23]} c4 {[%emt 0:12:14]} 12. bxc4 {[%emt 0:02:06]} dxc4 {[%emt 0:01:10]} 13. Nxc4 {[%emt 0:00:51]} Bxc4 {[%emt 0:00:44]} 14. dxc4 {[%emt 0:00:08]} O-O {[%emt 0:03:34]} 15. Ne5 {[%emt 0:01:45]} Qc7 {[%emt 0:10:25]} 16. Qf3 {[%emt 0:00:31]} Rac8 {[%emt 0:00:23]} 17. Rfd1 {[%emt 0:09:45]} Rfd8 {[%emt 0:03:46]} 18. Bc3 {[%emt 0:04:31]} Ne8 {[%emt 0:04:57]} 19. Rxd8 {[%emt 0:07:04]} Bxd8 {[%emt 0:00:59]} 20. Rd1 {[%emt 0:01:29]} Qb6 {[%emt 0:10:09]} 21. h3 {[%emt 0:03:55]} Bf6 {[%emt 0:04:51]} 22. Kh2 {[%emt 0:02:35]} Bxe5 {[%emt 0:01:46]} 23. Bxe5 {[%emt 0:00:10]} f6 {[%emt 0:02:15]} 24. Bc3 {[%emt 0:06:21]} Qc5 {[%emt 0:06:01]} 25. Rd7 {[%emt 0:01:38]} Qxc4 {[%emt 0:00:58]} 26. Qh5 {[%emt 0:00:35]} e5 {[%emt 0:04:00]} 27. fxe5 {[%emt 0:00:05]} Qe6 {[%emt 0:00:29]} 28. Ra7 {[%emt 0:00:26]} f5 {[%emt 0:00:43]} 29. Qh4 {[%emt 0:00:51]} Qg6 {[%emt 0:06:06]} 30. Qe7 {[%emt 0:02:27]} h6 {[%emt 0:00:47]} 31. e6 {[%emt 0:00:36]} Kh7 {[%emt 0:01:34]} 32. Be5 {[%emt 0:00:47]} Qg5 {[%emt 0:02:07]} 33. Qxg5 {[%emt 0:01:04]} hxg5 {[%emt 0:00:02]} 34. Rxa5 {[%emt 0:00:06]} c5 {[%emt 0:00:40]} 35. Ra6 {[%emt 0:03:27]} Kg6 {[%emt 0:00:13]} 36. a5 {[%emt 0:00:05]} Nf6 {[%emt 0:00:44]} 37. Bxf6 {[%emt 0:00:41]} Kxf6 {[%emt 0:00:05]} 38. Rb6 {[%emt 0:00:02]} Rd8 {[%emt 0:00:26]} 39. a6 {[%emt 0:00:18]} Rd1 {[%emt 0:00:12]} 40. a7 {[%emt 0:00:16]} Ra1 {[%emt 0:00:07]} 41. Rb7 {[%emt 0:00:10]} Kxe6 {[%emt 0:00:07]} 42. Rxg7 {[%emt 0:00:04]} Ke5 {[%emt 0:00:24]} 43. Kg3 {[%emt 0:02:38]} Ra3 {[%emt 0:01:01]} 44. Kf2 {[%emt 0:00:26]} Ra2 {[%emt 0:00:10]} 45. Ke1 {[%emt 0:00:08]} Ke4 {[%emt 0:00:36]} 46. Kd2 {[%emt 0:00:23]} Ra3 {[%emt 0:00:02]} 47. Re7+ {[%emt 0:00:24]} Kd5 {[%emt 0:00:01]} 48. g3 {[%emt 0:00:15]} Kc4 {[%emt 0:00:18]} 49. h4 {[%emt 0:00:33]} 1-0

[Event "9th RTU Open 2019"]
[Site "Riga"]
[Date "2019.08.06"]
[Round "2.18"]
[White "Sowray, Peter J"]
[Black "Chandra, Akshat"]
[Result "1-0"]
[ECO "E46"]
[WhiteElo "2332"]
[BlackElo "2522"]
[Annotator "ChessBase"]
[PlyCount "99"]
[EventDate "2019.08.05"]
[EventType "swiss"]
[EventCountry "LAT"]
[SourceTitle "playchess.com"]
[Source "ChessBase"]
[SourceQuality "1"]
[TimeControl "5400+30"]

1. d4 {[%emt 0:00:00]} Nf6 {[%emt 0:00:28]} 2. c4 {[%emt 0:00:00]} e6 {[%emt 0:00:08]} 3. Nc3 {[%emt 0:00:00]} Bb4 {[%emt 0:00:23]} 4. e3 {[%emt 0:00:00]} O-O {[%emt 0:00:13]} 5. Nge2 {[%emt 0:00:04]} Re8 {[%emt 0:00:59]} 6. a3 {[%emt 0:02:16]} Bf8 {[%emt 0:00:08]} 7. Ng3 {[%emt 0:00:06]} d5 {[%emt 0:01:32]} 8. Be2 {[%emt 0:00:55]} b6 {[%emt 0:01:14]} 9. O-O {[%emt 0:03:51]} Bb7 {[%emt 0:06:06]} 10. b3 {[%emt 0:06:17]} c5 {[%emt 0:17:01]} 11. dxc5 {[%emt 0:09:04]} bxc5 {[%emt 0:00:20]} 12. Bb2 {[%emt 0:02:53]} Nbd7 {[%emt 0:12:10]} 13. Qc2 {[%emt 0:06:04]} g6 {[%emt 0:22:57]} 14. Rfd1 {[%emt 0:05:25]} Qe7 {[%emt 0:02:27]} 15. cxd5 {[%emt 0:13:52]} exd5 {[%emt 0:00:11]} 16. Bb5 {[%emt 0:00:09]} Red8 {[%emt 0:02:53]} 17. Rd2 {[%emt 0:11:24]} Nb6 {[%emt 0:03:26]} 18. Na4 {[%emt 0:03:52]} Nxa4 {[%emt 0:04:45]} 19. Bxa4 {[%emt 0:00:11]} h5 {[%emt 0:00:18]} 20. Rad1 {[%emt 0:05:47]} h4 {[%emt 0:01:28]} 21. Nf1 {[%emt 0:02:08]} h3 {[%emt 0:07:24]} 22. Ng3 {[%emt 0:02:05]} hxg2 {[%emt 0:01:12]} 23. Qc3 {[%emt 0:02:24]} Bg7 {[%emt 0:06:02]} 24. Qe5 {[%emt 0:00:41]} Qf8 {[%emt 0:05:30]} 25. Qc7 {[%emt 0:06:13]} Rab8 {[%emt 0:00:05]} 26. Qf4 {[%emt 0:00:08]} d4 {[%emt 0:02:40]} 27. exd4 {[%emt 0:01:02]} Nd5 {[%emt 0:00:05]} 28. Qg4 {[%emt 0:01:03]} f5 {[%emt 0:01:21]} 29. Qg5 {[%emt 0:02:16]} Qf6 {[%emt 0:00:32]} 30. Qxf6 {[%emt 0:01:07]} Nxf6 {[%emt 0:00:24]} 31. dxc5 {[%emt 0:00:53]} Rxd2 {[%emt 0:00:29]} 32. Rxd2 {[%emt 0:00:02]} Rc8 {[%emt 0:00:35]} 33. b4 {[%emt 0:01:18]} f4 {[%emt 0:00:21]} 34. Rd6 {[%emt 0:03:51]} fxg3 {[%emt 0:00:29]} 35. hxg3 {[%emt 0:01:49]} Ne8 {[%emt 0:00:27]} 36. Rxg6 {[%emt 0:02:08]} Be4 {[%emt 0:00:44]} 37. Rg4 {[%emt 0:01:06]} Bf5 {[%emt 0:00:31]} 38. Rg5 {[%emt 0:00:18]} Kh7 {[%emt 0:00:29]} 39. Bxg7 {[%emt 0:01:10]} Nxg7 {[%emt 0:00:11]} 40. Rxf5 {[%emt 0:00:22]} Nxf5 {[%emt 0:00:04]} 41. Bc2 {[%emt 0:00:05]} Kg6 {[%emt 0:01:10]} 42. g4 {[%emt 0:00:05]} Kg5 {[%emt 0:00:26]} 43. Bxf5 {[%emt 0:00:22]} Rc7 {[%emt 0:00:20]} 44. Kxg2 {[%emt 0:00:25]} Kf4 {[%emt 0:00:01]} 45. f3 {[%emt 0:01:05]} a5 {[%emt 0:01:17]} 46. Be4 {[%emt 0:00:43]} axb4 {[%emt 0:00:30]} 47. axb4 {[%emt 0:00:01]} Ke5 {[%emt 0:00:28]} 48. g5 {[%emt 0:01:13]} Ra7 {[%emt 0:00:32]} 49. g6 {[%emt 0:00:42]} Kf6 {[%emt 0:00:30]} 50. c6 {[%emt 0:01:01]} 1-0

[Event "9th RTU Open 2019"]
[Site "Riga"]
[Date "2019.08.06"]
[Round "2.19"]
[White "Gukesh D"]
[Black "Stepins, Edgars"]
[Result "1-0"]
[ECO "E90"]
[WhiteElo "2520"]
[BlackElo "2320"]
[Annotator "ChessBase"]
[PlyCount "65"]
[EventDate "2019.08.05"]
[EventType "swiss"]
[EventCountry "LAT"]
[SourceTitle "playchess.com"]
[Source "ChessBase"]
[SourceQuality "1"]
[TimeControl "5400+30"]

1. d4 {[%emt 0:00:15]} Nf6 {[%emt 0:00:03]} 2. c4 {[%emt 0:00:11]} g6 {[%emt 0:00:15]} 3. Nc3 {[%emt 0:00:29]} Bg7 {[%emt 0:00:40]} 4. e4 {[%emt 0:00:08]} d6 {[%emt 0:00:06]} 5. h3 {[%emt 0:01:16]} O-O {[%emt 0:01:26]} 6. Be3 {[%emt 0:00:37]} Nbd7 {[%emt 0:01:35]} 7. Nf3 {[%emt 0:02:26]} c5 {[%emt 0:07:09]} 8. d5 {[%emt 0:08:56]} a6 {[%emt 0:07:08]} 9. a4 {[%emt 0:04:37]} Ne8 {[%emt 0:05:14]} 10. Be2 {[%emt 0:02:14]} Qa5 {[%emt 0:03:01]} 11. O-O {[%emt 0:08:57]} Ne5 {[%emt 0:06:11]} 12. Nd2 {[%emt 0:02:51]} f5 {[%emt 0:01:43]} 13. f4 {[%emt 0:03:19]} Nf7 {[%emt 0:00:28]} 14. Ra3 {[%emt 0:21:36]} Nf6 {[%emt 0:11:44]} 15. exf5 {[%emt 0:01:38]} gxf5 {[%emt 0:03:05]} 16. g4 {[%emt 0:04:15]} e5 {[%emt 0:08:36]} 17. dxe6 {[%emt 0:09:44]} Bxe6 {[%emt 0:00:10]} 18. g5 {[%emt 0:01:19]} Ne8 {[%emt 0:04:45]} 19. Nd5 {[%emt 0:13:06]} Bxd5 {[%emt 0:05:46]} 20. cxd5 {[%emt 0:01:04]} Qd8 {[%emt 0:01:02]} 21. Bd3 {[%emt 0:05:04]} Nh8 {[%emt 0:03:43]} 22. Qc2 {[%emt 0:03:43]} Qd7 {[%emt 0:00:29]} 23. Nf3 {[%emt 0:01:00]} Ng6 {[%emt 0:00:37]} 24. Rb3 {[%emt 0:02:00]} Rb8 {[%emt 0:03:57]} 25. Bxa6 {[%emt 0:00:39]} Qxa4 {[%emt 0:02:44]} 26. Bb5 {[%emt 0:00:01]} Qe4 {[%emt 0:00:30]} 27. Qxe4 {[%emt 0:00:53]} fxe4 {[%emt 0:00:03]} 28. Nd2 {[%emt 0:00:07]} Nc7 {[%emt 0:01:29]} 29. f5 {[%emt 0:01:19]} Nxb5 {[%emt 0:00:49]} 30. Rxb5 {[%emt 0:00:06]} Ne7 {[%emt 0:00:12]} 31. f6 {[%emt 0:00:09]} Nxd5 {[%emt 0:00:05]} 32. fxg7 {[%emt 0:00:03]} Rxf1+ {[%emt 0:00:16]} 33. Nxf1 {[%emt 0:00:01]} 1-0